bitfinex/quotes_SOLUSD_20260223
["timestamp","ask_amount","ask_price","bid_price","bid_amount"]
[1771866781489,0.9620852,79.149,79.083,54.27338476]
[1771866781490,0.9620852,79.129,79.101,1.01587392]
[1771866781716,0.9620852,79.126,79.101,1.01587392]
[1771866782027,5.40047066,79.12,79.101,1.01587392]
[1771866782329,5.40047066,79.12,79.092,1.01587392]
[1771866782534,6.36255586,79.12,79.092,1.01587392]
[1771866783036,6.36255586,79.12,79.094,1.01587392]
[1771866783594,0.9620852,79.15,79.111,1.01587392]
[1771866783901,50.51156082,79.19,79.11,5.40047066]
[1771866783902,0.9620852,79.139,79.11,5.40047066]
[1771866784407,0.9620852,79.129,79.1,5.40047066]
[1771866784606,0.9620852,79.129,79.097,1.01587392]
[1771866784806,0.9620852,79.129,79.101,1.01587392]
[1771866785004,0.9620852,79.129,79.103,1.01587392]
[1771866785801,0.9620852,79.119,79.092,12.6434714]
[1771866786006,0.9620852,79.099,79.07,1.01587392]
[1771866786408,0.9620852,79.099,79.071,13.6627356]
[1771866786695,0.9620852,79.109,79.072,1.01587392]
[1771866787510,0.9620852,79.107,79.073,13.66241572]
[1771866788119,0.9620852,79.107,79.074,1.01587392]
[1771866788514,0.9620852,79.099,79.074,1.01587392]
[1771866788738,0.9620852,79.099,79.073,12.6465418]
[1771866790120,5.40047066,79.1,79.065,13.66358904]
[1771866790121,0.9620852,79.097,79.065,13.66358904]
[1771866790425,0.9620852,79.089,79.065,12.64771512]
[1771866790955,0.9620852,79.089,79.066,1.01587392]
[1771866792312,0.9620852,79.097,79.067,12.64750148]
[1771866792513,0.9620852,79.097,79.07,14.49740657]
[1771866792740,0.9620852,79.097,79.071,1.01587392]
[1771866793945,0.64032782,79.085,79.071,1.01587392]
[1771866794126,0.64032782,79.085,79.067,12.64750148]
[1771866794323,0.9620852,79.091,79.068,1.01587392]
[1771866794644,0.9620852,79.102,79.071,1.01587392]
[1771866795940,0.9620852,79.102,79.07,14.49740657]
[1771866795941,0.9620852,79.102,79.081,1.01587392]
[1771866798441,0.9620852,79.102,79.078,12.64561941]
[1771866799033,0.9620852,79.102,79.08,14.49740657]
[1771866799249,0.9620852,79.102,79.078,12.64561941]
[1771866800437,0.94200163,79.108,79.081,0.93835852]
[1771866801657,6.54655802,79.135,79.06,0.1]
[1771866801658,0.94200163,79.114,79.09,14.49740657]
[1771866801958,0.94200163,79.114,79.091,0.93835852]
[1771866802326,0.94200163,79.12,79.091,0.93835852]
[1771866802540,0.94200163,79.12,79.1,14.49740657]
[1771866802745,0.94200163,79.146,79.11,14.49740657]
[1771866802933,0.94200163,79.139,79.11,14.49740657]
[1771866803139,0.94200163,79.139,79.109,0.93835852]
[1771866803344,0.94200163,79.139,79.1,14.49740657]
[1771866803345,0.94200163,79.129,79.101,0.93835852]
[1771866803854,0.94200163,79.119,79.094,0.93835852]
[1771866804956,0.94200163,79.119,79.096,12.64273955]
[1771866805550,0.94200163,79.109,79.08,14.48704817]
[1771866806054,0.94200163,79.109,79.081,0.93835852]
[1771866806762,0.94200163,79.109,79.09,15.42540669]
[1771866807253,0.94200163,79.109,79.06,0.1]
[1771866807254,0.94200163,79.099,79.07,14.48704817]
[1771866807437,0.94200163,79.099,79.066,12.64766144]
[1771866807855,0.94200163,79.099,79.07,14.48704817]
[1771866808058,0.94200163,79.099,79.067,0.93835852]
[1771866809141,12.64254469,79.098,79.068,12.64734152]
[1771866809460,0.94200163,79.097,79.068,12.64734152]
[1771866810545,0.94200163,79.089,79.061,0.93835852]
[1771866810757,0.94200163,79.089,79.062,12.64822706]
[1771866811055,44.24890641,79.098,79.06,0.1]
[1771866811056,0.94200163,79.079,79.06,0.1]
[1771866811673,0.94200163,79.069,79.06,0.1]
[1771866812250,0.94200163,79.069,79.046,12.65075593]
[1771866812855,0.94200163,79.075,79.05,14.48704817]
[1771866813271,0.94200163,79.075,79.05,5.41477407]
[1771866813767,0.94200163,79.074,79.049,0.93835852]
[1771866814163,31.60885611,79.092,79.06,5.41477407]
[1771866814164,13.58695993,79.083,79.06,5.41477407]
[1771866814550,0.94200163,79.082,79.06,5.41477407]
[1771866814757,0.94200163,79.069,79.044,12.65112036]
[1771866815968,12.64727978,79.069,79.044,12.65112036]
[1771866816273,0.94200163,79.068,79.044,12.65112036]
[1771866816648,0.94200163,79.068,79.045,0.93835852]
[1771866817968,0.94200163,79.068,79.046,12.65086152]
[1771866818167,18.0618597,79.07,79.037,31.6304454]
[1771866818168,0.94200163,79.066,79.042,12.6514184]
[1771866819769,0.94200163,79.066,79.024,5.36086188]
[1771866819770,0.94200163,79.064,79.038,12.65207628]
[1771866819957,0.94200163,79.064,79.014,5.36086188]
[1771866819958,0.94200163,79.049,79.013,12.65614519]
[1771866820268,0.94200163,79.039,79.013,12.65614519]
[1771866820654,0.94200163,79.039,79.014,0.93835852]
[1771866820853,0.94200163,79.059,79.021,0.93835852]
[1771866821363,44.26737494,79.065,79.013,12.65614519]
[1771866821364,0.94200163,79.039,79.013,12.65614519]
[1771866822067,0.74200163,79.039,79.013,12.65614519]
[1771866822251,13.39402175,79.039,79.013,13.59450371]
[1771866822455,12.65202012,79.039,79.013,12.65614519]
[1771866823053,5.41477407,79.04,79.013,12.65614519]
[1771866823252,5.21477407,79.04,79.013,12.65614519]
[1771866823871,5.21477407,79.04,79.01,5.51477407]
[1771866823872,5.21477407,79.04,79.015,12.65582484]
[1771866824073,0.94200163,79.039,79.015,12.65582484]
[1771866824271,0.94200163,79.045,79.016,0.93835852]
[1771866824570,0.74200163,79.045,79.016,0.93835852]
[1771866825975,5.41477407,79.05,79.017,13.59386303]
[1771866825976,12.65118162,79.044,79.017,13.59386303]
[1771866826151,12.65118162,79.044,79.018,0.93835852]
[1771866826357,13.59318325,79.044,79.018,0.93835852]
[1771866826660,0.94200163,79.043,79.018,0.93835852]
[1771866827758,0.94006605,79.039,79.018,0.93835852]
[1771866828861,0.94006605,79.039,79.019,12.65518419]
[1771866829986,0.94006605,79.039,79.019,1.02685401]
[1771866834569,0.94006605,79.039,79.02,1.02685401]
[1771866834769,13.59214491,79.039,79.02,1.02685401]
[1771866834983,0.94006605,79.039,79.02,1.02685401]
[1771866836569,0.94006605,79.043,79.02,13.68180464]
[1771866836769,31.62424452,79.054,79.021,1.02685401]
[1771866836770,12.64959828,79.054,79.021,1.02685401]
[1771866837083,0.94006605,79.049,79.02,13.68180464]
[1771866837283,0.94006605,79.039,79.015,12.65572883]
[1771866837470,0.94006605,79.039,79.015,13.68258284]
[1771866837879,0.94006605,79.039,79.01,5.51477407]
[1771866837880,5.41477407,79.03,79.01,0.1]
[1771866838066,0.94006605,79.029,79.01,0.1]
[1771866838272,0.94006605,79.029,79.011,12.65646555]
[1771866838677,0.94006605,79.029,79.011,1.02685401]
[1771866839484,0.94006605,79.027,79.01,0.1]
[1771866839677,0.94006605,79.027,79.001,12.65806761]
[1771866840288,0.94006605,79.019,79.0,0.1]
[1771866840893,0.94006605,79.018,79.0,0.1]
[1771866841580,5.41477407,79.02,79.001,1.02685401]
[1771866841788,0.94006605,79.024,79.001,1.02685401]
[1771866841982,0.94006605,79.022,79.001,1.02685401]
[1771866842291,6.35484012,79.02,79.001,1.02685401]
[1771866842593,0.94006605,79.02,79.001,1.02685401]
[1771866843185,5.41477407,79.04,79.01,5.41477407]
[1771866843384,5.41477407,79.04,79.005,1.02685401]
[1771866843586,5.41477407,79.03,79.001,1.02685401]
[1771866844674,5.41477407,79.03,79.003,1.02685401]
[1771866845076,13.59380902,79.028,79.003,1.02685401]
[1771866845495,5.41477407,79.04,79.011,1.02685401]
[1771866845671,0.94006605,79.039,79.011,1.02685401]
[1771866846488,3.69383402,79.056,79.011,1.02685401]
[1771866846489,0.94006605,79.029,79.011,1.02685401]
[1771866847075,0.94006605,79.029,79.005,1.02685401]
[1771866848691,0.94006605,79.035,79.011,1.02685401]
[1771866848998,0.94006605,79.033,79.011,1.02685401]
[1771866849304,3.69383402,79.056,78.99,0.1]
[1771866849305,0.94006605,79.028,78.99,0.1]
[1771866849475,0.94006605,79.009,78.99,0.1]
[1771866849675,5.41477407,79.01,78.99,1.12685401]
[1771866849876,0.94006605,79.015,78.99,1.12685401]
[1771866850075,0.94006605,79.029,78.991,1.02685401]
[1771866851217,44.28585889,79.032,78.993,1.02685401]
[1771866851218,0.94006605,79.019,78.993,1.02685401]
[1771866852304,12.65374297,79.028,79.001,1.02685401]
[1771866852803,0.94006605,79.027,79.001,1.02685401]
[1771866853178,13.59412926,79.026,79.001,1.02685401]
[1771866853374,13.59412926,79.026,79.003,1.02685401]
[1771866853982,12.65406321,79.026,79.003,1.02685401]
[1771866855802,0.94006605,79.025,79.003,1.02685401]
[1771866856792,5.41477407,79.03,79.005,1.02685401]
[1771866857000,12.65296425,79.033,79.011,1.02685401]
[1771866857494,12.65241053,79.037,79.011,1.02685401]
[1771866857703,12.65241053,79.037,79.012,1.02685401]
[1771866857901,12.65241053,79.037,79.011,12.65639997]
[1771866857902,1.02499554,79.053,79.021,0.98364366]
[1771866858214,12.64942128,79.055,79.021,0.98364366]
[1771866858215,1.02499554,79.049,79.021,0.98364366]
[1771866859407,5.41477407,79.03,79.0,0.98364366]
[1771866859607,1.02499554,79.035,79.001,0.98364366]
[1771866859801,13.67772299,79.035,79.011,0.98364366]
[1771866860597,1.02159334,79.034,79.011,0.98364366]
[1771866861001,5.41477407,79.02,78.96,0.1]
[1771866861196,44.28428308,79.035,78.96,0.1]
[1771866861197,3.69383402,79.017,78.96,0.1]
[1771866861386,246.72623916,79.035,78.941,12.66768852]
[1771866861387,3.69383402,78.995,78.941,12.66768852]
[1771866861587,3.69383402,78.995,78.942,0.99952076]
[1771866861789,3.69383402,78.995,78.91,57.04]
[1771866861790,5.41477407,78.98,78.944,0.99952076]
[1771866861988,5.41477407,78.97,78.944,0.99952076]
[1771866862192,3.69383402,78.991,78.94,0.1]
[1771866862389,5.41477407,78.97,78.942,0.99952076]
[1771866862798,5.41477407,78.96,78.942,0.99952076]
[1771866863618,5.41477407,78.97,78.942,0.99952076]
[1771866863797,5.41477407,78.97,78.94,5.51477407]
[1771866863798,5.41477407,78.97,78.944,0.99952076]
[1771866864187,5.41477407,78.97,78.94,0.1]
[1771866864188,1.02159334,78.968,78.94,1.09952076]
[1771866864616,5.41477407,78.97,78.94,1.09952076]
[1771866864617,5.41477407,78.97,78.942,0.99952076]
[1771866864912,5.41477407,78.96,78.942,0.99952076]
[1771866865399,5.43095981,78.96,78.942,0.99952076]
[1771866866709,5.43095981,78.96,78.94,0.1]
[1771866866710,1.02159334,78.959,78.94,0.1]
[1771866866924,5.43095981,78.96,78.94,1.09952076]
[1771866867508,44.32297685,78.966,78.94,1.09952076]
[1771866867712,6.45255315,78.96,78.94,1.09952076]
[1771866867906,1.02159334,78.959,78.94,0.1]
[1771866868207,1.02159334,78.949,78.93,0.1]
[1771866868402,5.43095981,78.94,78.93,0.1]
[1771866868730,1.02159334,78.957,78.931,0.99952076]
[1771866869013,1.02159334,78.939,78.92,0.1]
[1771866869191,1.02159334,78.929,78.835,50.73879949]
[1771866869395,5.43095981,78.92,78.845,0.99952076]
[1771866869589,1.02159334,78.929,78.891,0.99952076]
[1771866869810,5.43095981,78.93,78.901,0.99952076]
[1771866870227,1.02159334,78.936,78.901,0.99952076]
[1771866870407,6.45255315,78.93,78.901,0.99952076]
[1771866870608,1.02159334,78.929,78.901,0.99952076]
[1771866870932,1.02159334,78.929,78.873,5.36086188]
[1771866871229,12.66865142,78.935,78.881,0.99952076]
[1771866871230,44.34027997,78.935,78.881,0.99952076]
[1771866871530,44.34027997,78.935,78.891,0.99952076]
[1771866871531,1.02159334,78.919,78.891,0.99952076]
[1771866872411,5.43095981,78.9,78.878,12.67768646]
[1771866872804,1.02159334,78.889,78.856,31.70316594]
[1771866873006,5.43095981,78.88,78.856,31.70316594]
[1771866873423,44.34983147,78.918,78.856,31.70316594]
[1771866873424,5.43095981,78.89,78.856,31.70316594]
[1771866873628,4.3914772,78.88,78.856,31.70316594]
[1771866873923,5.43095981,78.89,78.856,31.70316594]
[1771866874133,44.34983147,78.918,78.856,31.70316594]
[1771866874134,5.43095981,78.88,78.856,31.70316594]
[1771866874313,5.43095981,78.88,78.847,9.0546959]
[1771866874632,5.43095981,78.88,78.844,44.39145653]
[1771866875021,5.43095981,78.88,78.845,5.36086188]
[1771866876117,5.43095981,78.9,78.851,5.36086188]
[1771866876322,6.47049573,78.9,78.852,44.38695276]
[1771866876632,5.43095981,78.89,78.852,44.38695276]
[1771866878153,5.43095981,78.87,78.848,0.88903711]
[1771866878313,12.67603106,78.89,78.82,1e-08]
[1771866878314,10.86191962,78.86,78.82,1e-08]
[1771866878511,3.69383402,78.881,78.725,6.55821739]
[1771866878512,3.69383402,78.827,78.725,6.55821739]
[1771866878739,5.43095981,78.77,78.742,12.69969923]
[1771866879029,5.43095981,78.8,78.726,12.70228387]
[1771866879030,3.69383402,78.784,78.726,12.70228387]
[1771866879233,16.98797143,78.787,78.726,12.70228387]
[1771866879412,16.98797143,78.787,78.686,228.75733927]
[1771866879610,1.03759738,78.764,78.7,14.62199612]
[1771866879815,1.03759738,78.764,78.72,14.62199612]
[1771866880009,1.03759738,78.759,78.686,311.36415623]
[1771866880238,1.03759738,78.759,78.71,14.62199612]
[1771866880542,31.72962124,78.791,78.68,14.62199612]
[1771866880543,14.62199612,78.73,78.68,14.62199612]
[1771866880835,14.62199612,78.73,78.683,3.69383402]
[1771866881037,1.03759738,78.75,78.661,260.61199321]
[1771866881330,14.62199612,78.73,78.68,14.62199612]
[1771866881534,1.03759738,78.729,78.67,14.62199612]
[1771866881752,1.03759738,78.757,78.661,324.17589399]
[1771866881914,14.62199612,78.73,78.69,14.62199612]
[1771866882110,1.03759738,78.76,78.694,3.69383402]
[1771866882337,25.36057994,78.889,78.695,9.0546959]
[1771866882338,14.62199612,78.75,78.695,9.0546959]
[1771866882522,14.62199612,78.74,78.696,0.14216157]
[1771866883034,1.03759738,78.719,78.695,5.36086188]
[1771866883235,12.69618235,78.764,78.679,5.36086188]
[1771866883236,1.03759738,78.739,78.679,5.36086188]
[1771866883417,1.03759738,78.729,78.691,5.36086188]
[1771866883741,44.43657136,78.764,78.686,3.69383402]
[1771866883742,1.03759738,78.738,78.686,3.69383402]
[1771866883928,1.03759738,78.738,78.679,5.36086188]
[1771866884134,1.03759738,78.738,78.687,44.48002846]
[1771866884438,1.03759738,78.736,78.688,5.36086188]
[1771866884645,14.62199612,78.71,78.689,0.28432314]
[1771866885146,1.03759738,78.757,78.696,0.28432314]
[1771866885434,14.62199612,78.73,78.696,0.28432314]
[1771866885619,1.03759738,78.757,78.696,0.28432314]
[1771866885620,14.62199612,78.72,78.696,0.28432314]
[1771866885814,14.62199612,78.72,78.677,50.84043832]
[1771866885815,1.03759738,78.709,78.652,12.71422848]
[1771866886039,14.62199612,78.72,78.605,101.77469626]
[1771866886040,14.62199612,78.67,78.605,101.77469626]
[1771866886348,1.02159334,78.686,78.605,31.80459258]
[1771866886535,12.70857956,78.687,78.605,31.80459258]
[1771866886842,14.62199612,78.64,78.605,31.80459258]
[1771866887043,44.48002846,78.687,78.605,31.80459258]
[1771866887044,1.02810439,78.687,78.61,14.62199612]
[1771866887247,14.62199612,78.67,78.606,0.14216157]
[1771866887418,14.62199612,78.67,78.605,31.80459258]
[1771866887419,14.62199612,78.7,78.641,0.14216157]
[1771866887833,14.62199612,78.7,78.644,5.64518502]
[1771866888042,14.62199612,78.69,78.644,5.64518502]
[1771866888232,14.62199612,78.69,78.649,9.0546959]
[1771866888433,1.02810439,78.707,78.65,0.14216157]
[1771866888732,14.62199612,78.71,78.655,0.14216157]
[1771866889240,14.62199612,78.7,78.655,0.14216157]
[1771866889634,14.62199612,78.7,78.645,324.24184626]
[1771866889635,14.62199612,78.69,78.652,3.69383402]
[1771866890322,1.02810439,78.698,78.652,3.69383402]
[1771866890323,1.02810439,78.698,78.654,5.50302345]
[1771866890517,14.62199612,78.66,78.599,50.89083123]
[1771866890755,209.60669732,78.719,78.599,50.89083123]
[1771866890756,3.69383402,78.716,78.599,50.89083123]
[1771866890925,3.69383402,78.716,78.583,108.16588828]
[1771866890926,14.62199612,78.62,78.583,44.53889517]
[1771866891118,1.02810439,78.619,78.583,12.72539862]
[1771866891434,10.20006283,78.715,78.583,12.72539862]
[1771866891435,1.02810439,78.714,78.586,3.69383402]
[1771866891743,323.93741797,78.719,78.583,146.34208415]
[1771866891744,1.02810439,78.679,78.612,0.14216157]
[1771866892117,1.02810439,78.679,78.62,14.62199612]
[1771866892315,1.02810439,78.659,78.611,5.50302345]
[1771866892833,1.02810439,78.671,78.62,14.62199612]
[1771866893033,1.02810439,78.671,78.612,0.14216157]
[1771866893427,1.02810439,78.671,78.62,14.62199612]
[1771866893626,1.02810439,78.669,78.61,14.62199612]
[1771866893826,1.02810439,78.669,78.62,14.62199612]
[1771866894027,1.02810439,78.669,78.61,14.62199612]
[1771866894226,1.02810439,78.667,78.611,44.52303112]
[1771866894444,1.02810439,78.667,78.62,14.62199612]
[1771866894827,1.02810439,78.667,78.611,44.52303112]
[1771866895229,13.73903252,78.673,78.612,5.64518502]
[1771866895434,1.02810439,78.672,78.63,14.62199612]
[1771866895635,1.02810439,78.671,78.63,14.62199612]
[1771866896526,1.02810439,78.669,78.62,14.62199612]
[1771866897025,1.02810439,78.669,78.613,12.7205424]
[1771866897542,1.02810439,78.669,78.61,14.62199612]
[1771866897840,1.02810439,78.669,78.611,12.72086603]
[1771866898042,1.02810439,78.666,78.611,12.72086603]
[1771866898242,3.69383402,78.667,78.61,14.62199612]
[1771866898243,1.02810439,78.659,78.61,14.62199612]
[1771866898451,1.02810439,78.657,78.621,12.71924803]
[1771866898746,1.02810439,78.657,78.63,14.62199612]
[1771866898922,3.69383402,78.693,78.621,44.51736812]
[1771866898923,14.62199612,78.7,78.64,14.62199612]
[1771866899124,12.70502737,78.709,78.639,1.02001007]
[1771866899325,3.69383402,78.697,78.65,14.62199612]
[1771866899547,44.46759581,78.709,78.65,14.62199612]
[1771866899750,14.62199612,78.7,78.641,1.02001007]
[1771866899950,44.46759581,78.709,78.65,14.62199612]
[1771866900146,44.46759581,78.709,78.67,14.62199612]
[1771866900451,63.4981212,78.743,78.68,27.33169321]
[1771866900649,18.31583014,78.74,78.68,27.33169321]
[1771866901048,63.4981212,78.743,78.68,27.33169321]
[1771866901049,1.01598355,78.739,78.69,14.62199612]
[1771866901231,1.01598355,78.739,78.68,12.70969709]
[1771866901232,1.01598355,78.739,78.71,14.62199612]
[1771866901426,1.01598355,78.739,78.681,1.02035758]
[1771866901750,0.47691144,78.71,78.681,1.02035758]
[1771866902048,1.01598355,78.734,78.7,14.62199612]
[1771866902549,1.01598355,78.732,78.69,14.62199612]
[1771866902728,1.01598355,78.732,78.68,14.62199612]
[1771866903135,1.01598355,78.732,78.69,14.62199612]
[1771866903330,1.01598355,78.732,78.7,14.62199612]
[1771866903552,1.01598355,78.732,78.672,44.48850924]
[1771866903553,1.01598355,78.732,78.71,14.62199612]
[1771866903778,57.34995681,78.76,78.72,14.62199612]
[1771866903779,1.01598355,78.742,78.72,14.62199612]
[1771866903952,1.01598355,78.742,78.7,14.62199612]
[1771866904252,1.01598355,78.742,78.71,14.62199612]
[1771866904651,44.4483954,78.743,78.71,14.62199612]
[1771866904652,1.01598355,78.74,78.71,14.62199612]
[1771866904833,1.01598355,78.74,78.7,12.70642777]
[1771866905043,1.01598355,78.74,77.796,195.71084789]
[1771866905044,1.01598355,78.726,78.67,14.62199612]
[1771866905346,1.01598355,78.726,78.671,1.02472711]
[1771866905935,0.88890355,78.726,78.671,1.02472711]
[1771866906137,0.88890355,78.726,78.7,14.62199612]
[1771866906758,12.70244522,78.725,78.7,14.62199612]
[1771866907264,12.70244522,78.725,78.69,14.62199612]
[1771866907443,12.70244522,78.725,78.71,14.62199612]
[1771866909258,0.89572405,78.732,78.71,14.62199612]
[1771866909456,0.89572405,78.732,78.7,14.62199612]
[1771866910571,0.89572405,78.732,78.693,1.02472711]
[1771866910858,44.45404086,78.733,78.701,1.02472711]
[1771866911243,44.44331571,78.752,78.702,12.7061574]
[1771866911437,44.44331571,78.752,78.72,14.62199612]
[1771866911949,44.44331571,78.752,78.71,1.02472711]
[1771866912139,44.44331571,78.752,78.72,14.62199612]
[1771866912342,44.44331571,78.752,78.701,1.02472711]
[1771866912655,44.44331571,78.752,78.71,14.62199612]
[1771866912855,44.44331571,78.752,78.72,14.62199612]
[1771866913262,44.44331571,78.752,78.689,44.47889793]
[1771866913263,44.44331571,78.752,78.73,14.62199612]
[1771866913468,31.74522551,78.752,78.73,14.62199612]
[1771866913642,31.74522551,78.752,78.72,14.62199612]
[1771866914451,31.74522551,78.752,78.73,14.62199612]
[1771866914656,12.69696161,78.759,78.74,14.62199612]
[1771866914858,0.2,78.79,78.75,14.62199612]
[1771866914859,44.42300857,78.788,78.75,14.62199612]
[1771866915060,44.42300857,78.788,78.741,1.02472711]
[1771866915363,3.69383402,78.785,78.726,1.02472711]
[1771866915570,3.69383402,78.785,78.73,14.62199612]
[1771866915945,3.69383402,78.777,78.72,14.62199612]
[1771866916677,3.69383402,78.785,78.73,14.62199612]
[1771866916975,3.69383402,78.785,78.74,14.62199612]
[1771866917160,3.69383402,78.785,78.75,14.62199612]
[1771866917358,3.69383402,78.781,78.75,14.62199612]
[1771866917751,44.425264,78.784,78.75,15.21414709]
[1771866918071,44.425264,78.784,78.75,15.64343332]
[1771866918371,44.425264,78.784,78.741,1.0214372]
[1771866918572,44.425264,78.784,78.75,14.62199612]
[1771866919257,44.425264,78.784,78.76,14.62199612]
[1771866919455,31.73233143,78.784,78.76,14.62199612]
[1771866919651,31.73233143,78.784,78.76,10.75901343]
[1771866919868,31.73233143,78.784,78.77,14.62199612]
[1771866920069,31.73233143,78.784,78.76,14.62199612]
[1771866920370,31.73233143,78.784,78.72,14.62199612]
[1771866920552,0.98522434,78.783,78.75,14.62199612]
[1771866921069,0.98522434,78.783,78.76,14.62199612]
[1771866921462,0.2,78.79,78.77,14.62199612]
[1771866921650,0.98522434,78.811,78.78,14.62199612]
[1771866921848,0.98522434,78.811,78.79,14.62199612]
[1771866922264,3.69383402,78.82,78.8,14.62199612]
[1771866922265,0.98522434,78.82,78.8,14.62199612]
[1771866922463,13.67187671,78.823,78.8,14.62199612]
[1771866922676,0.98522434,78.819,78.765,0.96444997]
[1771866922965,0.98522434,78.819,78.78,14.62199612]
[1771866923550,0.98522434,78.817,78.78,14.62199612]
[1771866923747,0.98522434,78.817,78.8,14.62199612]
[1771866923966,0.98522434,78.817,78.78,0.96444997]
[1771866923967,12.68745717,78.818,78.788,0.96444997]
[1771866924164,12.68745717,78.818,78.8,14.62199612]
[1771866924375,12.68745717,78.818,78.791,0.96444997]
[1771866924947,12.68745717,78.818,78.8,14.62199612]
[1771866925374,0.98522434,78.835,78.78,14.62199612]
[1771866925577,50.72670481,78.854,78.8,14.62199612]
[1771866925578,0.98522434,78.833,78.8,14.62199612]
[1771866925775,50.72670481,78.854,78.793,12.69141065]
[1771866925776,0.98522434,78.842,78.82,14.62199612]
[1771866926371,0.98522434,78.842,78.81,14.62199612]
[1771866926675,0.98522434,78.842,78.751,50.79285039]
[1771866926884,0.98522434,78.842,78.8,14.62199612]
[1771866927056,0.98522434,78.842,78.78,14.62199612]
[1771866927256,12.6819865,78.852,78.83,14.58550197]
[1771866927664,31.70496626,78.852,78.83,14.58550197]
[1771866928692,12.68069997,78.86,78.83,14.58550197]
[1771866928977,0.94523957,78.859,78.83,14.58550197]
[1771866929186,0.94523957,78.859,78.82,14.58550197]
[1771866929370,0.94523957,78.859,78.83,14.58550197]
[1771866929872,3.69383402,78.874,78.821,0.96444997]
[1771866929873,0.94523957,78.857,78.821,0.96444997]
[1771866930271,0.94463562,78.893,78.851,0.96444997]
[1771866930460,12.67561011,78.892,78.87,14.58550197]
[1771866931265,0.94544546,78.919,78.88,14.58550197]
[1771866931462,0.94544546,78.919,78.84,14.58550197]
[1771866931463,0.94544546,78.919,78.89,14.58550197]
[1771866931666,12.67057765,78.923,78.89,15.54995194]
[1771866931964,12.66897241,78.933,78.91,14.58550197]
[1771866932166,12.66592359,78.952,78.92,14.58550197]
[1771866932366,12.66504826,78.958,78.93,14.58550197]
[1771866932570,12.66504826,78.958,78.93,15.54995194]
[1771866932874,12.66504826,78.958,78.9,14.58550197]
[1771866932875,0.946246,78.957,78.909,0.96444997]
[1771866933075,0.946246,78.957,78.852,50.72778485]
[1771866933076,0.94453513,78.946,78.9,15.54995194]
[1771866933384,0.94453513,78.946,78.9,0.96444997]
[1771866933559,0.94453513,78.946,78.9,15.54995194]
[1771866933978,0.94453513,78.941,78.89,14.58550197]
[1771866934168,0.94453513,78.941,78.9,14.58550197]
[1771866934567,0.9428439,78.936,78.89,14.58550197]
[1771866935165,0.9428439,78.936,78.891,0.96444997]
[1771866935476,0.9428439,78.936,78.882,0.96444997]
[1771866935661,0.9428439,78.936,78.89,14.58550197]
[1771866935860,0.93951951,78.934,78.89,14.58550197]
[1771866936057,0.93951951,78.934,78.901,0.96444997]
[1771866936262,12.66865142,78.935,78.911,0.96444997]
[1771866937882,12.66720713,78.944,78.911,0.96444997]
[1771866938190,0.93627105,78.943,78.911,0.96444997]
[1771866938863,0.93627105,78.943,78.899,0.96444997]
[1771866939268,0.93627105,78.943,78.901,0.96444997]
[1771866940176,0.93627105,78.943,78.85,50.72870936]
[1771866940177,0.93309678,78.929,78.883,0.96444997]
[1771866940964,0.93153693,78.941,78.901,0.96444997]
[1771866942079,0.92999501,78.937,78.901,0.96444997]
[1771866942590,0.92999501,78.929,78.881,0.96444997]
[1771866943573,0.92847079,78.926,78.881,0.96444997]
[1771866943773,0.92847079,78.919,78.871,0.96444997]
[1771866944684,44.34983147,78.918,78.881,0.96444997]
[1771866946567,44.34533612,78.926,78.891,0.96444997]
[1771866946783,0.92400239,78.925,78.891,0.96444997]
[1771866947287,0.922547,78.899,78.856,0.96444997]
[1771866948690,0.90354908,78.897,78.857,0.96117114]
[1771866949179,0.90354908,78.897,78.858,0.96117114]
[1771866949380,0.90354908,78.897,78.86,15.54667311]
[1771866949585,0.90354908,78.897,78.85,15.54667311]
[1771866949891,0.90354908,78.897,78.852,0.96117114]
[1771866950184,0.90354908,78.889,78.852,0.96117114]
[1771866950694,0.90354908,78.887,78.852,0.96117114]
[1771866951095,14.58550197,78.88,78.782,50.77298723]
[1771866951274,44.36669708,78.888,78.821,0.96117114]
[1771866951275,0.90354908,78.859,78.821,0.96117114]
[1771866951586,0.90354908,78.859,78.83,14.58550197]
[1771866951787,0.90354908,78.873,78.841,0.96117114]
[1771866951976,0.90354908,78.873,78.828,0.96117114]
[1771866952176,0.90354908,78.873,78.83,14.58550197]
[1771866953275,0.90354908,78.871,78.831,0.96117114]
[1771866954591,0.90354908,78.869,78.822,0.96117114]
[1771866954784,44.37569732,78.872,78.831,0.96117114]
[1771866954990,44.37569732,78.872,78.841,0.96117114]
[1771866955185,31.69692666,78.872,78.841,0.96117114]
[1771866955390,32.60047574,78.872,78.841,0.96117114]
[1771866955582,0.90354908,78.871,78.841,0.96117114]
[1771866955970,0.90354908,78.871,78.831,0.96117114]
[1771866958991,0.90354908,78.869,78.831,0.96117114]
[1771866959786,0.90354908,78.869,78.822,0.96117114]
[1771866960479,0.90354908,78.869,78.831,0.96117114]
[1771866961001,0.9026186,78.867,78.831,0.96117114]
[1771866961803,44.37794795,78.868,78.809,0.96117114]
[1771866961804,0.9026186,78.849,78.809,0.96117114]
[1771866962285,0.9026186,78.849,78.785,44.42470012]
[1771866962286,0.9026186,78.849,78.811,0.96117114]